bitfinex-derivatives/quotes_SOLF0:USTF0_20250109
["timestamp","ask_amount","ask_price","bid_price","bid_amount"]
[1736443439070,8.50286094,190.4,190.33,8.50286094]
[1736443439274,13.25229783,190.43,190.31,17.76379783]
[1736443440071,2.6268,190.4,190.35,2.6273]
[1736443440673,13.25229783,190.43,190.35,2.6273]
[1736443440973,13.25229783,190.43,190.31,17.76379783]
[1736443441276,13.25229783,190.46,190.34,13.25229783]
[1736443441577,2.6264,190.43,190.38,2.6268]
[1736443441776,13.25229783,190.46,190.34,13.25229783]
[1736443441977,1.4956,190.49,190.37,13.25229783]
[1736443442176,185.6003837,190.6,190.4,13.25229783]
[1736443442177,1.6274,190.53,190.4,13.25229783]
[1736443442471,1.6274,190.53,190.41,1.5587]
[1736443442779,2.6253,190.5,190.41,1.5587]
[1736443443168,1.6274,190.53,190.43,13.25229783]
[1736443443578,13.25229783,190.51,190.41,1.5587]
[1736443443881,2.6254,190.49,190.44,2.6261]
[1736443444074,13.25229783,190.51,190.41,1.5587]
[1736443444273,2.6256,190.48,190.42,2.6263]
[1736443444675,13.25229783,190.51,190.41,1.5587]
[1736443444876,2.6256,190.48,190.43,2.6262]
[1736443445079,13.25229783,190.51,190.43,2.6262]
[1736443445382,2.6256,190.48,190.43,2.6262]
[1736443446077,2.6257,190.47,190.43,2.6262]
[1736443446883,13.25229783,190.48,190.41,2.6264]
[1736443447079,13.25229783,190.45,190.36,4.8]
[1736443447380,2.6261,190.45,190.4,2.6266]
[1736443447888,13.25229783,190.48,190.36,4.8]
[1736443448577,2.6261,190.45,190.4,2.6266]
[1736443449083,13.25229783,190.48,190.38,2.6268]
[1736443449276,13.25229783,190.45,190.34,13.25229783]
[1736443449481,13.25229783,190.48,190.37,13.25229783]
[1736443449679,1.5807,190.5,190.4,13.25229783]
[1736443450071,2.6256,190.48,190.44,2.6261]
[1736443450272,1.5807,190.5,190.37,13.25229783]
[1736443450482,13.25229783,190.48,190.37,13.25229783]
[1736443450688,2.6263,190.43,190.39,2.6268]
[1736443450983,13.25229783,190.45,190.34,13.25229783]
[1736443451184,2.6266,190.41,190.31,4.5885]
[1736443451485,13.25229783,190.45,190.31,17.84079783]
[1736443451675,2.6267,190.4,190.35,2.6272]
[1736443451874,13.25229783,190.45,190.31,17.84079783]
[1736443452280,13.25229783,190.45,190.36,2.6271]
[1736443452977,13.25229783,190.45,190.31,17.84079783]
[1736443453184,13.25229783,190.42,190.31,17.84079783]
[1736443453585,2.6271,190.38,190.33,2.6276]
[1736443453787,13.25229783,190.42,190.31,17.84079783]
[1736443454187,2.6268,190.39,190.31,4.5885]
[1736443454394,13.25229783,190.39,190.28,41.12737574]
[1736443454583,2.6276,190.34,190.3,2.6279]
[1736443454779,13.25229783,190.36,190.26,1.5036]
[1736443454988,1.542,190.38,190.26,1.5036]
[1736443455191,13.25229783,190.35,190.26,1.5036]
[1736443456183,2.6279,190.31,190.27,2.6284]
[1736443456389,13.25229783,190.35,190.26,1.5036]
[1736443459088,2.6277,190.33,190.29,2.6281]
[1736443459490,14.79429783,190.38,190.26,1.5036]
[1736443459691,2.6275,190.34,190.3,2.628]
[1736443459990,14.79429783,190.38,190.26,1.5036]
[1736443460192,13.25229783,190.35,190.26,1.5036]
[1736443460586,13.25229783,190.35,190.27,2.6284]
[1736443461489,13.25229783,190.35,190.25,9.74686351]
[1736443461692,13.25229783,190.32,190.25,9.74686351]
[1736443462285,2.6282,190.29,190.25,9.74686351]
[1736443462490,2.6282,190.29,190.25,12.37556351]
[1736443462690,13.25229783,190.32,190.25,9.74686351]
[1736443462892,2.6286,190.26,190.25,9.74686351]
[1736443463991,2.6285,190.27,190.25,9.74686351]
[1736443464294,13.25229783,190.29,190.25,9.74686351]
[1736443464795,1.517,190.3,190.25,9.74686351]
[1736443465387,2.6284,190.28,190.25,9.74686351]
[1736443465595,1.517,190.3,190.25,9.74686351]
[1736443466694,2.6284,190.28,190.25,12.37556351]
[1736443467290,4.1451,190.3,190.27,2.6284]
[1736443467492,1.5405,190.31,190.27,2.6284]
[1736443467690,13.25229783,190.35,190.25,9.74686351]
[1736443467999,7.9098,190.37,190.25,9.74686351]
[1736443469301,2.6277,190.33,190.29,2.6281]
[1736443469501,3.0898,190.37,190.25,9.74686351]
[1736443469895,2.6277,190.33,190.29,2.6281]
[1736443470100,3.0898,190.37,190.25,9.74686351]
[1736443470994,13.25229783,190.33,190.25,9.74686351]
[1736443471601,2.6283,190.29,190.25,12.37556351]
[1736443471807,13.25229783,190.33,190.25,9.74686351]
[1736443472206,2.6286,190.26,190.25,9.74686351]
[1736443472502,13.25229783,190.3,190.17,14.76749783]
[1736443472806,2.6288,190.25,190.21,2.6292]
[1736443473006,13.25229783,190.3,190.17,14.76749783]
[1736443473409,2.6287,190.26,190.22,2.629]
[1736443474207,13.25229783,190.3,190.17,1.5152]
[1736443474399,3.2224,190.29,190.17,1.5152]
[1736443474708,13.25229783,190.27,190.17,1.5152]
[1736443475512,2.6294,190.21,190.17,4.36049]
[1736443476206,2.6294,190.21,190.17,2.84529]
[1736443476802,2.6294,190.21,190.17,0.21549]
[1736443477010,2.6294,190.21,190.18,2.6297]
[1736443478702,2.6289,190.24,190.2,2.6293]
[1736443478913,13.25229783,190.27,190.17,0.21549]
[1736443479810,13.25229783,190.27,190.19,2.6295]
[1736443481804,2.6291,190.23,190.19,2.6295]
[1736443483114,2.6294,190.2,190.17,2.84529]
[1736443483712,2.6293,190.21,190.18,2.6297]
[1736443485916,2.6295,190.2,190.17,2.84529]
[1736443486120,13.25229783,190.24,190.17,0.21549]
[1736443486812,2.6296,190.19,190.17,0.21549]
[1736443487806,2.6297,190.18,190.17,0.21549]
[1736443488507,2.6299,190.17,190.14,2.6302]
[1736443488908,2.6296,190.19,190.16,2.6299]
[1736443489112,13.25229783,190.24,190.12,23.00571273]
[1736443489507,2.6293,190.21,190.17,2.6297]
[1736443489719,13.25229783,190.24,190.12,9.7534149]
[1736443490314,2.6296,190.19,190.12,9.7534149]
[1736443491111,2.6296,190.19,190.16,2.6299]
[1736443494015,2.6295,190.2,190.16,2.6299]
[1736443494227,2.6295,190.2,190.17,2.6297]
[1736443497620,13.25229783,190.24,190.12,9.7534149]
[1736443498221,2.6294,190.21,190.13,2.6304]
[1736443498511,13.25229783,190.21,190.13,2.6304]
[1736443498713,13.25229783,190.18,190.12,9.7534149]
[1736443498911,2.6304,190.13,190.12,9.7534149]
[1736443499315,13.25229783,190.18,190.12,9.7534149]
[1736443499510,2.6303,190.14,190.12,9.7534149]
[1736443499710,13.25229783,190.18,190.12,9.7534149]
[1736443500313,2.6302,190.15,190.12,9.7534149]
[1736443500723,2.6302,190.15,190.12,12.3838149]
[1736443501022,2.6298,190.17,190.12,9.7534149]
[1736443501218,3.1895,190.19,190.15,2.6301]
[1736443501420,13.25229783,190.21,190.12,9.7534149]
[1736443501622,2.6296,190.19,190.12,9.7534149]
[1736443501821,18.03229783,190.24,190.12,9.7534149]
[1736443503022,2.6294,190.2,190.17,2.6298]
[1736443503213,18.03229783,190.24,190.12,9.7534149]
[1736443503722,2.6293,190.21,190.12,9.7534149]
[1736443503923,4.78,190.24,190.14,13.25229783]
[1736443504320,2.6291,190.23,190.2,2.6293]
[1736443504525,3.1844,190.28,190.2,13.25229783]
[1736443504718,1.5981,190.28,190.2,13.25229783]
[1736443505225,2.6287,190.26,190.22,2.6291]
[1736443505422,1.5981,190.28,190.17,13.25229783]
[1736443505923,2.6289,190.24,190.2,2.6294]
[1736443506725,1.5981,190.28,190.17,13.25229783]
[1736443507225,13.25229783,190.27,190.17,13.25229783]
[1736443508127,13.25229783,190.27,190.2,2.6294]
[1736443508328,13.25229783,190.27,190.16,1.5177]
[1736443508525,2.6289,190.24,190.19,2.6295]
[1736443508725,13.25229783,190.27,190.19,2.6295]
[1736443509329,13.25229783,190.27,190.16,1.5177]
[1736443509522,13.25229783,190.27,190.17,13.25229783]
[1736443509924,2.6287,190.26,190.22,2.6291]
[1736443511520,2.6285,190.27,190.24,2.6288]
[1736443512026,13.25229783,190.3,190.24,2.6288]
[1736443512222,13.25229783,190.3,190.25,2.6286]
[1736443512423,13.25229783,190.3,190.2,13.25229783]
[1736443512620,2.6286,190.26,190.2,13.25229783]
[1736443512819,2.6286,190.26,190.17,13.25229783]
[1736443513225,2.6286,190.26,190.22,2.629]
[1736443513427,2.6286,190.26,190.17,13.25229783]
[1736443513824,2.6285,190.27,190.24,2.6288]
[1736443514026,13.25229783,190.3,190.17,13.25229783]
[1736443514728,2.6283,190.29,190.17,13.25229783]
[1736443516225,2.6286,190.26,190.17,13.25229783]
[1736443516436,13.25229783,190.27,190.16,1.5177]
[1736443516625,2.6288,190.25,190.21,2.6292]
[1736443517025,2.6288,190.25,190.16,1.5177]
[1736443517226,2.6288,190.25,190.22,2.6291]
[1736443517421,13.25229783,190.24,190.13,7.31766383]
[1736443517730,13.25229783,190.15,190.11,29.27065534]
[1736443517934,2.6304,190.13,190.11,29.27065534]
[1736443518730,2.6304,190.13,190.08,2.631]
[1736443519126,13.25229783,190.09,190.0,7.31766383]
[1736443519321,13.25229783,190.09,189.98,87.81196604]
[1736443519322,18.13229783,190.09,189.98,87.81196604]
[1736443519530,18.13229783,190.09,189.98,29.27065534]
[1736443519834,15.88379783,190.06,190.0,2.6322]
[1736443520022,13.25229783,190.06,190.0,2.6322]
[1736443520529,18.13229783,190.09,189.96,13.25229783]
[1736443521128,13.25229783,190.09,189.97,4.88]
[1736443521323,13.25229783,190.12,189.99,13.25229783]
[1736443521531,13.25229783,190.12,190.0,4.6778]
[1736443522333,2.6304,190.11,190.06,2.6311]
[1736443522931,13.25229783,190.12,190.0,4.6778]
[1736443523434,13.25229783,190.15,190.02,13.25229783]
[1736443523824,15.88219783,190.15,190.02,13.25229783]
[1736443524529,15.88219783,190.15,190.1,2.6305]
[1736443525237,2.6297,190.17,190.05,18.13229783]
[1736443526035,13.25229783,190.18,190.05,18.13229783]
[1736443526336,13.25229783,190.18,190.08,13.25229783]
[1736443526529,13.25229783,190.18,190.09,2.9739]
[1736443527131,2.6299,190.15,190.09,2.9739]
[1736443527328,13.25229783,190.18,190.09,2.9739]
[1736443527529,13.25229783,190.18,190.12,2.6302]
[1736443527936,13.25229783,190.18,190.09,2.9739]
[1736443528135,13.25229783,190.18,190.12,2.6303]
[1736443528539,2.6297,190.17,190.12,2.6303]
[1736443529735,13.25229783,190.18,190.14,2.6299]
[1736443530130,13.25229783,190.18,190.09,2.9739]
[1736443530333,13.25229783,190.18,190.15,2.6297]
[1736443531037,2.6293,190.2,190.15,2.6297]
[1736443532237,2.6293,190.19,190.15,2.6297]
[1736443532533,13.25229783,190.21,190.1,1.604]
[1736443533141,15.88139783,190.21,190.16,2.6296]
[1736443533337,15.88139783,190.21,190.1,1.604]
[1736443533741,13.25229783,190.21,190.17,2.6295]
[1736443533938,13.25229783,190.24,190.11,13.25229783]
[1736443534338,2.6287,190.23,190.18,2.6293]
[1736443535347,2.6289,190.22,190.18,2.6293]
[1736443535641,13.25229783,190.21,190.13,4.84]
[1736443537234,13.25229783,190.21,190.11,4.84]
[1736443537630,13.25229783,190.21,190.11,18.09229783]
[1736443538144,15.88129783,190.21,190.17,2.6296]
[1736443538342,13.25229783,190.21,190.11,18.09229783]
[1736443538643,13.25229783,190.24,190.11,18.09229783]
[1736443538843,2.6289,190.23,190.11,18.09229783]
[1736443539138,13.25229783,190.21,190.11,4.84]
[1736443539343,2.6295,190.18,190.14,2.6299]
[1736443539543,13.25229783,190.21,190.11,4.84]
[1736443539947,2.6293,190.19,190.14,2.63]
[1736443540138,2.6293,190.19,190.11,4.84]
[1736443541176,2.6293,190.19,190.15,2.6298]
[1736443542182,13.25229783,190.21,190.16,2.6297]
[1736443542461,2.6292,190.2,190.16,2.6297]
[1736443542672,13.25229783,190.21,190.16,2.6297]
[1736443542862,2.6293,190.19,190.16,2.6297]
[1736443547448,2.6296,190.17,190.14,2.63]
[1736443547649,13.25229783,190.18,190.1,0.24274]
[1736443547946,13.25229783,190.15,190.1,0.24274]
[1736443548151,2.6304,190.11,190.1,0.24274]
[1736443548345,13.25229783,190.12,190.04,29.27065534]
[1736443548545,2.631,190.07,190.03,2.6314]
[1736443549045,2.6313,190.05,190.01,2.6317]
[1736443549242,13.25229783,190.06,189.97,4.6651]
[1736443549446,13.25229783,190.06,189.97,3.0891]
[1736443550742,13.25229783,190.06,190.01,2.6318]
[1736443551355,15.88349783,190.06,189.97,3.0891]
[1736443551654,13.25229783,190.06,190.0,2.6319]
[1736443551850,13.25229783,190.06,189.97,3.0891]
[1736443552052,2.6313,190.05,189.97,3.0891]
[1736443552254,2.6313,190.05,190.0,2.6318]
[1736443552452,2.6313,190.05,189.97,3.0891]
[1736443552846,13.25229783,190.06,189.97,3.0891]
[1736443553046,15.88339783,190.06,189.97,3.0891]
[1736443553244,13.25229783,190.09,189.97,16.34139783]
[1736443553445,2.6309,190.08,190.04,2.6314]
[1736443553848,2.6309,190.08,190.03,2.6315]
[1736443554050,2.6309,190.08,189.97,16.34139783]
[1736443554452,2.6309,190.08,190.0,2.6319]
[1736443554652,2.6309,190.08,189.97,16.34139783]
[1736443555048,2.6309,190.08,190.03,2.6314]
[1736443555449,2.6309,190.08,189.97,21.14139783]
[1736443555656,14.85229783,190.12,190.06,2.6311]
[1736443555856,14.85229783,190.12,190.0,13.25229783]
[1736443556255,2.6306,190.1,190.0,13.25229783]
[1736443556659,2.6301,190.14,190.09,2.6307]
[1736443556859,2.6301,190.14,190.03,13.25229783]
[1736443557060,13.25229783,190.15,190.03,13.25229783]
[1736443557263,13.25229783,190.15,190.04,1.5475]
[1736443557580,15.88229783,190.15,190.04,1.5475]
[1736443557757,15.88229783,190.15,190.05,1.4906]
[1736443557968,13.25229783,190.18,190.06,13.25229783]
[1736443558168,13.25229783,190.18,190.06,14.77579783]
[1736443558371,4.2503,190.17,190.09,2.6306]
[1736443558568,4.2503,190.17,190.06,14.77579783]
[1736443558768,1.6207,190.17,190.06,14.77579783]
[1736443558969,2.6298,190.16,190.12,2.6302]
[1736443559765,13.25229783,190.18,190.06,14.77579783]
[1736443561367,2.6296,190.17,190.13,2.63]
[1736443564078,15.88179783,190.18,190.13,2.63]
[1736443567075,15.88179783,190.18,190.14,2.63]
[1736443567475,2.6296,190.17,190.14,2.63]
[1736443567674,13.25229783,190.18,190.14,2.63]
[1736443567971,2.6293,190.19,190.15,2.6298]
[1736443568179,13.25229783,190.21,190.09,13.25229783]
[1736443568379,13.25229783,190.18,190.06,14.77579783]
[1736443568578,2.6297,190.16,190.12,2.6301]
[1736443569282,2.6296,190.17,190.13,2.6301]
[1736443570178,15.88179783,190.18,190.14,2.6299]
[1736443571486,2.6296,190.17,190.14,2.6299]
[1736443571674,13.25229783,190.18,190.06,14.77579783]
[1736443571874,13.25229783,190.18,190.12,2.6302]
[1736443572382,13.25229783,190.18,190.1,2.6304]
[1736443572580,13.25229783,190.15,190.06,1.5235]
[1736443572780,2.6303,190.12,190.06,1.5235]
[1736443573681,13.25229783,190.15,190.06,1.5235]
[1736443574283,15.88219783,190.15,190.1,2.6304]
[1736443574876,2.6297,190.16,190.12,2.6302]
[1736443575081,13.25229783,190.18,190.06,14.77579783]
[1736443575275,13.25229783,190.21,190.09,13.25229783]
[1736443575487,15.88139783,190.21,190.17,2.6294]
[1736443578484,2.6292,190.2,190.17,2.6294]
[1736443581283,15.88129783,190.21,190.18,2.6294]
[1736443581986,2.6286,190.25,190.22,2.6288]
[1736443582180,6.95663487,190.26,190.15,13.25229783]
[1736443582385,6.95663487,190.26,190.16,1.5756]
[1736443582684,9.58493487,190.26,190.23,2.6287]
[1736443582880,13.25229783,190.28,190.23,2.6287]
[1736443583089,13.25229783,190.28,190.18,13.25229783]
[1736443583385,13.25229783,190.31,190.18,13.25229783]
[1736443583691,2.6281,190.28,190.24,2.6286]
[1736443584594,2.6281,190.28,190.25,2.6285]
[1736443584785,2.6281,190.28,190.18,17.99229783]
[1736443585088,2.6281,190.28,190.23,2.6286]
[1736443585485,2.6281,190.28,190.24,2.6286]
[1736443586589,13.25229783,190.31,190.18,17.99229783]
[1736443586788,2.6279,190.29,190.25,2.6284]
[1736443587381,13.25229783,190.31,190.26,2.6283]
[1736443587578,15.88009783,190.31,190.18,17.99229783]
[1736443587786,13.25229783,190.34,190.21,13.25229783]
[1736443587987,13.25229783,190.34,190.22,1.5652]
[1736443588591,2.6279,190.3,190.26,2.6282]
[1736443588791,13.25229783,190.31,190.22,1.5652]
[1736443589490,15.87989783,190.31,190.22,1.5652]
[1736443590688,13.25229783,190.31,190.22,1.5652]
[1736443590884,13.25229783,190.28,190.18,4.72]
[1736443591293,2.6283,190.26,190.22,2.6288]
[1736443591997,2.6283,190.26,190.23,2.6287]
[1736443592495,2.6282,190.27,190.23,2.6287]
[1736443593996,15.88039783,190.28,190.24,2.6285]
[1736443594196,13.25229783,190.28,190.18,4.72]
[1736443594796,13.25229783,190.28,190.25,2.6284]
[1736443596099,15.88039783,190.28,190.25,2.6284]
[1736443597098,15.88039783,190.28,190.24,2.6286]
[1736443597796,2.6282,190.27,190.24,2.6286]
[1736443598102,13.25229783,190.28,190.24,2.6286]
[1736443599095,15.88039783,190.28,190.24,2.6286]
[1736443601495,15.88039783,190.28,190.18,4.72]
[1736443601691,15.88039783,190.28,190.25,2.6284]
[1736443601996,13.25229783,190.28,190.18,17.97229783]
[1736443602197,2.6279,190.29,190.26,2.6283]
[1736443602396,13.25229783,190.31,190.26,2.6283]
[1736443602897,2.6278,190.3,190.27,2.6282]
[1736443603203,13.25229783,190.31,190.18,17.97229783]
[1736443603405,2.6274,190.33,190.3,2.6278]
[1736443604497,13.25229783,190.31,190.18,23.23099783]
[1736443605107,2.6281,190.28,190.25,2.6284]
[1736443605305,13.25229783,190.31,190.18,23.23099783]
[1736443606302,15.87999783,190.31,190.27,2.6281]
[1736443607308,15.87999783,190.31,190.18,23.23099783]
[1736443607508,15.87999783,190.31,190.27,2.6281]
[1736443609207,2.628,190.29,190.25,2.6284]
[1736443609411,13.25229783,190.31,190.18,23.23099783]
[1736443611210,2.6278,190.3,190.26,2.6282]
[1736443611409,13.25229783,190.31,190.18,23.23099783]
[1736443611609,2.6278,190.3,190.26,2.6283]
[1736443611911,13.25229783,190.31,190.26,2.6283]
[1736443612806,2.6278,190.3,190.26,2.6283]
[1736443613704,13.25229783,190.31,190.18,23.23099783]
[1736443613907,13.25229783,190.31,190.21,13.25229783]
[1736443614512,13.25229783,190.31,190.29,2.6278]
[1736443616711,13.25229783,190.34,190.21,13.25229783]
[1736443617911,2.6275,190.32,190.24,2.6285]
[1736443618114,13.25229783,190.34,190.21,13.25229783]
[1736443618913,2.6276,190.31,190.28,2.6279]
[1736443620215,2.6276,190.31,190.21,13.25229783]
[1736443620418,13.25229783,190.34,190.29,2.6279]
[1736443620715,2.6275,190.32,190.21,13.25229783]
[1736443621118,13.25229783,190.34,190.21,13.25229783]
[1736443621331,8.48639725,190.33,190.26,8.48639725]
[1736443622023,8.48639725,190.29,190.26,3.1852]
[1736443622219,8.48639725,190.27,190.2,7.31766383]
[1736443622522,8.48639725,190.25,190.24,2.6286]
[1736443623019,2.6279,190.3,190.21,8.48639725]
[1736443623319,8.48639725,190.3,190.23,8.48639725]
[1736443624324,8.48639725,190.32,190.25,8.48639725]
[1736443624523,8.48639725,190.32,190.29,2.6279]
[1736443625419,2.6275,190.33,190.29,2.6279]
[1736443626524,13.26229683,190.37,190.25,13.26229683]
[1736443626721,13.26229683,190.37,190.26,4.726]
[1736443628328,2.6273,190.34,190.3,2.6277]
[1736443628629,13.26229683,190.37,190.26,4.726]
[1736443628819,2.6271,190.35,190.26,4.726]
[1736443631625,2.6271,190.35,190.31,2.6275]
[1736443632222,2.6271,190.35,190.26,4.726]
[1736443632530,2.6266,190.39,190.28,13.26229683]
[1736443632723,13.26229683,190.4,190.28,13.26229683]
[1736443633027,13.26229683,190.43,190.31,13.26229683]
[1736443633427,13.26229683,190.43,190.29,13.26229683]
[1736443633630,2.6267,190.39,190.29,13.26229683]
[1736443633826,13.26229683,190.4,190.26,17.98829683]
[1736443634027,2.6267,190.39,190.29,13.26229683]
[1736443634227,21.76919913,190.44,190.29,13.26229683]
[1736443634424,21.76919913,190.44,190.37,2.6267]
[1736443634628,2.6262,190.42,190.37,2.6267]
[1736443634829,2.6262,190.42,190.33,3.1695]
[1736443635427,2.626,190.43,190.33,3.1695]
[1736443635632,14.79179683,190.44,190.33,3.1695]
[1736443635931,13.26229683,190.41,190.33,3.1695]
[1736443636635,13.26229683,190.41,190.35,2.627]
[1736443637728,13.26229683,190.41,190.34,2.6272]
[1736443638023,13.26229683,190.38,190.27,1.5953]
[1736443638224,2.6269,190.37,190.32,2.6274]
[1736443638431,13.26229683,190.38,190.27,1.5953]
[1736443638835,2.6272,190.35,190.32,2.6275]
[1736443640135,2.627,190.36,190.32,2.6275]
[1736443640332,13.26229683,190.38,190.32,2.6275]
[1736443640533,13.26229683,190.38,190.31,2.6276]
[1736443640730,2.627,190.36,190.27,1.5953]
[1736443641036,13.26229683,190.38,190.34,2.6272]
[1736443641237,15.88899683,190.38,190.27,1.5953]
[1736443641439,20.23969913,190.41,190.29,13.26229683]
[1736443642231,2.6265,190.4,190.32,2.6274]
[1736443642439,13.26229683,190.41,190.29,13.26229683]
[1736443643131,2.6266,190.39,190.35,2.627]
[1736443643335,13.26229683,190.41,190.29,13.26229683]
[1736443643934,2.6268,190.37,190.33,2.6272]
[1736443644129,2.6268,190.37,190.29,13.26229683]
[1736443644528,2.6268,190.37,190.33,2.6273]
[1736443646535,13.26229683,190.38,190.27,6.2753]
[1736443647440,8.4856774,190.34,190.32,2.6275]
[1736443647939,8.4856774,190.34,190.23,7.31766383]
[1736443648137,8.4856774,190.28,190.23,7.31766383]
[1736443648333,8.4856774,190.28,190.21,8.4856774]
[1736443648530,8.4856774,190.28,190.2,29.27065534]
[1736443648531,8.4856774,190.26,190.23,2.6286]
[1736443648742,8.4856774,190.28,190.21,8.4856774]
[1736443649044,8.4856774,190.28,190.23,2.6287]
[1736443649337,8.4856774,190.31,190.25,8.4856774]
[1736443649743,8.4856774,190.31,190.29,2.6279]
[1736443650139,8.4856774,190.33,190.27,8.4856774]
[1736443651143,8.4856774,190.33,190.3,2.6278]
[1736443651340,13.25932263,190.37,190.25,13.25932263]
[1736443651544,13.25932263,190.37,190.26,4.699]
[1736443651745,2.6271,190.36,190.31,2.6276]
[1736443652536,13.25932263,190.34,190.26,3.1577]
[1736443652734,13.25932263,190.34,190.21,26.89808646]
[1736443652942,13.25932263,190.34,190.21,23.73468646]
[1736443653140,9.42647617,190.38,190.24,13.25932263]
[1736443653338,21.8124988,190.38,190.24,13.25932263]
[1736443653535,2.6268,190.37,190.28,2.628]
[1736443653742,2.6268,190.37,190.24,13.25932263]
[1736443654139,1.573,190.38,190.27,13.25932263]
[1736443654341,1.573,190.38,190.28,1.5466]
[1736443654541,13.25932263,190.4,190.3,13.25932263]
[1736443654739,15.88572263,190.4,190.36,2.6269]
[1736443655539,15.88572263,190.4,190.37,2.6268]
[1736443655744,15.88572263,190.4,190.3,13.25932263]
[1736443655745,2.6262,190.42,190.3,13.25932263]
[1736443655945,13.25932263,190.43,190.3,13.25932263]
[1736443656147,13.25932263,190.43,190.37,2.6267]
[1736443656452,2.6264,190.41,190.37,2.6267]
[1736443656747,13.25932263,190.43,190.36,2.6269]
[1736443657047,2.6264,190.4,190.36,2.6269]
[1736443657749,13.25932263,190.4,190.28,4.7286]
[1736443658051,2.6266,190.39,190.35,2.6271]
[1736443658645,13.25932263,190.43,190.29,13.25932263]
[1736443659047,13.25932263,190.43,190.32,13.25932263]
[1736443659448,2.6262,190.42,190.35,2.627]
[1736443659744,2.6262,190.42,190.32,13.25932263]
[1736443659745,13.25932263,190.43,190.32,13.25932263]
[1736443659941,15.88542263,190.43,190.38,2.6266]
[1736443660246,16.43142263,190.46,190.32,13.25932263]
[1736443660551,2.6257,190.45,190.41,2.6262]
[1736443663250,13.25932263,190.46,190.36,3.148]
[1736443663449,15.88492263,190.46,190.42,2.6261]
[1736443664842,2.6257,190.45,190.42,2.6261]
[1736443666747,13.25932263,190.49,190.36,4.7267]
[1736443667052,13.25932263,190.49,190.43,2.626]
[1736443669246,2.6255,190.47,190.43,2.626]
[1736443670544,13.25932263,190.49,190.43,2.626]
[1736443670850,13.25932263,190.46,190.36,3.148]
[1736443671050,13.25932263,190.43,190.36,1.614]
[1736443671449,13.25932263,190.43,190.37,2.6268]
[1736443671851,2.6263,190.41,190.37,2.6268]
[1736443672850,13.25932263,190.43,190.36,1.614]
[1736443673053,2.6262,190.42,190.36,1.614]
[1736443673250,13.25932263,190.43,190.36,1.614]
[1736443674154,13.25932263,190.43,190.38,2.6266]
[1736443674755,2.6262,190.42,190.38,2.6266]
[1736443674944,13.25932263,190.43,190.38,2.6266]
[1736443675345,2.6263,190.41,190.38,2.6266]
[1736443675551,13.25932263,190.43,190.39,2.6265]
[1736443675850,13.25932263,190.43,190.33,9.74326912]
[1736443676253,13.25932263,190.43,190.35,2.6271]
[1736443676450,2.6266,190.39,190.35,2.6271]
[1736443676945,2.6267,190.38,190.35,2.6271]
[1736443677657,2.6266,190.39,190.36,2.6269]
[1736443677859,1.5512,190.42,190.33,9.74326912]
[1736443678353,2.6265,190.4,190.36,2.6268]
[1736443678555,13.25932263,190.43,190.33,9.74326912]
[1736443678751,2.6263,190.41,190.38,2.6266]
[1736443678950,13.25932263,190.46,190.34,13.25932263]
[1736443679553,2.626,190.43,190.4,2.6264]
[1736443682356,2.6261,190.43,190.39,2.6264]
[1736443682650,13.25932263,190.43,190.33,9.74326912]
[1736443683051,2.627,190.36,190.33,9.74326912]
[1736443683548,13.25932263,190.4,190.33,9.74326912]
[1736443683752,13.25932263,190.37,190.29,1.6328]
[1736443684256,13.25932263,190.4,190.29,1.6328]
[1736443684458,13.25932263,190.4,190.27,13.25932263]
[1736443684651,13.25932263,190.4,190.28,1.5009]
[1736443684856,2.627,190.36,190.32,2.6275]
[1736443685053,13.25932263,190.4,190.32,2.6275]
[1736443685453,2.6267,190.38,190.32,2.6275]
[1736443685661,13.25932263,190.4,190.33,2.6274]
[1736443686062,2.6269,190.37,190.34,2.6272]
[1736443686262,2.6269,190.37,190.28,1.5009]
[1736443686863,2.6269,190.37,190.34,2.6271]
[1736443687062,2.6269,190.37,190.28,1.5009]
[1736443687664,2.6269,190.37,190.34,2.6271]
[1736443690368,144.2819869,190.52,190.35,4.68]
[1736443690673,144.2819869,190.52,190.43,13.25932263]
[1736443690974,144.2819869,190.52,190.48,2.6252]